Cogmind - Beta 11.1 @@@ ROGUE MODE // 2022.09.19 @ 20:42:02 Player: Candesce Result: Self-destructed Performance ------------- Evolutions (3) 1500 Regions Visited (8) 1600 Robots Destroyed (103) 515 Value Destroyed (2818) 2818 Prototype IDs (9) 180 Alien Tech Used (0) 0 Bonus (-1181) -1181 TOTAL SCORE: 5432 Bonus ------- High Alert Combat Kills 100 Follower Combat Kills 40 Friendly Fire -1321 Cogmind --------- Core Integrity 694/700 Matter 300/300 Energy 310/310 System Corruption 2% Temperature Cool (16) Movement Treading (165) Location -7/Factory Parts ------- > --- POWER (1) -------- Heavy Deuterium Engine > --- PROPULSION (4) --- Light Treads Light Treads Armored Treads Armored Treads > --- UTILITY (6) ------ Improved Cooling System Medium Storage Unit Improved Targeting Computer Advanced Targeting Computer Hacking Suite > --- WEAPON (2) ------- Plasma Cannon > --- INVENTORY (10) --- Heavy Deuterium Engine YI-UF0's Bottomless Matter Pit (1500) Heavy Armor Plating Hacking Suite Hacking Suite Authchip [Weapon] Plasma Cannon Mini Grenade Launcher Katana Peak State ------------ > --- POWER ------------ Heavy Deuterium Engine > --- PROPULSION ------- Light Treads Armored Treads Armored Treads Armored Treads > --- UTILITY ---------- Advanced Heat Sink Medium Storage Unit Experimental Sensor Array Improved Targeting Computer Advanced Targeting Computer Hardened Medium Armor Plating > --- WEAPON ----------- Plasma Cannon Plasma Cannon > --- INVENTORY -------- Reinforced Deuterium Engine YI-UF0's Bottomless Matter Pit Heavy Armor Plating Hacking Suite Hacking Suite Hacking Suite Plasma Cannon Mini Grenade Launcher Katana [Rating: 49] Favorites ----------- Power Heavy Ion Engine Engine Heavy Ion Engine Propulsion Light Treads Treads Light Treads Utility Medium Storage Unit Device Improved Heat Sink Storage Medium Storage Unit Processor Improved Targeting Computer Hackware Hacking Suite Protection Light Armor Plating Weapon Plasma Cannon Energy Gun Improved EM Shotgun Energy Cannon Plasma Cannon Ballistic Gun Heavy Assault Rifle Launcher Mini Grenade Launcher Slashing Weapon Katana Build | -11 -10 -10 -9 -9 -9 -8 -8 -7 ------- Run | Scr Mat Min Mat Min Exi Min Mat Fac Slots Evolved 6 | . . . 2 . . . 2 2 Power . | . . . . . . . . . Propulsion 2 | . . . 1 . . . . 1 Utility 4 | . . . 1 . . . 2 1 Weapon . | . . . . . . . . . Parts Attached 87 | 8 3 13 22 2 1 9 22 7 Power 6 | 1 . 1 1 . . . 2 1 Engine 6 | 1 . 1 1 . . . 2 1 Core . | . . . . . . . . . Reactor . | . . . . . . . . . Propulsion 22 | 2 . . 10 . . 2 6 2 Treads 22 | 2 . . 10 . . 2 6 2 Leg . | . . . . . . . . . Wheel . | . . . . . . . . . Hover . | . . . . . . . . . Flight . | . . . . . . . . . Utility 28 | 2 2 7 5 . . 2 7 3 Device 12 | 1 . 4 3 . . 1 1 2 Storage 3 | 1 1 1 . . . . . . Processor 2 | . . . . . . . 2 . Hackware 1 | . . . . . . . . 1 Protection 10 | . 1 2 2 . . 1 4 . Artifact . | . . . . . . . . . Weapon 31 | 3 1 5 6 2 1 5 7 1 Energy Gun 11 | 2 . 3 2 1 . 3 . . Energy Cannon 9 | . . . 2 . . 1 5 1 Ballistic Gun 2 | 1 . . 1 . . . . . Ballistic Cannon . | . . . . . . . . . Launcher 6 | . 1 2 1 . 1 1 . . Special Weapon . | . . . . . . . . . Impact Weapon . | . . . . . . . . . Slashing Weapon 3 | . . . . 1 . . 2 . Piercing Weapon . | . . . . . . . . . Special Melee Weapon . | . . . . . . . . . Unidentified Prototypes 4 | . . 1 2 . . . . 1 Parts Lost 6 | . . . 1 1 . 2 1 1 Power . | . . . . . . . . . Propulsion . | . . . . . . . . . Utility 3 | . . . . . . 1 1 1 Weapon 3 | . . . 1 1 . 1 . . Highest Loss Streak 2 | . . . 1 1 . 2 1 1 To Critical Strikes . | . . . . . . . . . Average Slot Usage (%) 99 | . 100 100 99 99 88 99 99 98 Engine 11 | . 14 14 11 11 11 11 9 7 Treads 30 | . 28 28 33 33 33 33 26 28 Device 13 | . 14 12 14 11 11 16 10 14 Storage 11 | . 14 14 11 11 11 11 9 7 Processor 4 | . . . . . . . 18 15 Protection 6 | . . 1 7 11 11 5 6 5 Energy Gun 11 | . 28 28 11 10 . 10 . . Energy Cannon 8 | . . . 7 10 . 10 17 14 Naked Turns . | . . . . . . . . . Heaviest Build 50 | 14 23 28 31 29 25 29 50 49 Greatest Support 80 | 40 40 40 60 60 60 60 60 80 Greatest Overweight (x) 1 | . . . . . . . 1 . Average Overweight (x) . | . . . . . . . . . Largest Inventory Capacity 10 | 8 10 10 10 10 10 10 10 10 Average Capacity 9 | 7 9 10 10 10 10 10 10 10 Most Carried 10 | 2 8 10 10 10 10 10 10 10 Average Carried 9 | . 6 9 9 9 9 9 9 9 Final Capacity 10 | 8 10 10 10 10 10 10 10 10 Final Carried 10 | 2 8 10 10 10 9 10 10 10 Class Distribution -------------------- 55% | Scavenger-Mutant 44% | Mutant Dominant Class ---------------- Mutant | -10/Materials Mutant | -10/Mines Scavenger-Mutant | -9/Materials Scavenger-Mutant | -9/Mines Scavenger-Mutant | -9/Exiles Scavenger-Mutant | -8/Mines Mutant | -8/Materials Mutant | -7/Factory Resources | -11 -10 -10 -9 -9 -9 -8 -8 -7 ----------- Run | Scr Mat Min Mat Min Exi Min Mat Fac Matter Collected 2669 | 280 . 295 1638 18 . 153 215 70 Remotely . | . . . . . . . . . Salvage Created 4066 | 68 133 260 1293 82 . 366 1528 336 Parts 215 | 6 10 26 77 2 . 17 63 14 Haulers Intercepted 4 | . 1 . 1 . . . 1 1 Recyclers Shooed 1 | . . . 1 . . . . . Parts Field Recycled . | . . . . . . . . . Retrieved Matter . | . . . . . . . . . Parts Self-Destructed . | . . . . . . . . . Prevented . | . . . . . . . . . Kills | -11 -10 -10 -9 -9 -9 -8 -8 -7 ------- Run | Scr Mat Min Mat Min Exi Min Mat Fac Combat Hostiles Destroyed 73 | . 3 9 20 1 . 10 26 4 Melee 1 | . . . . . . . 1 . Guns 15 | . 3 . 8 . . 4 . . Cannons 39 | . . . 9 1 . 3 22 4 AOE 14 | . . 9 3 . . 2 . . Classes Destroyed 14 | 2 2 1 6 1 . . 1 1 Worker 5 | . . 1 2 1 . . 1 . Tunneler 4 | 1 . 2 1 . . . . . Hauler 4 | . 1 . 1 . . . 1 1 Recycler 10 | 1 1 1 3 1 . 1 1 1 Operator 2 | . . . 2 . . . . . Watcher 4 | . . . 3 . . . . 1 Swarmer 20 | . 3 9 4 . . 4 . . Grunt 33 | . . . 11 . . 5 16 1 Brawler 2 | . . . 1 . . 1 . . Duelist 3 | . . . 1 . . . 2 . Sentry 11 | . . . 3 . . . 7 1 Demolisher 1 | . . . . 1 . . . . Hunter 1 | . . . . . . . 1 . Programmer 2 | . . . . . . . . 2 Best Kill Streak 8 | 2 3 3 7 2 . 4 8 2 Combat Bots Only 7 | . 3 3 5 1 . 4 7 1 Max Kills in Single Turn 3 | 1 1 3 3 1 . 2 2 1 Gunslinging . | . . . . . . . . . Exploded 3 | . . 3 3 . . 2 . . Melee 1 | . . . . . . . 1 . Uniques/NPCs Destroyed 1 | . . 1 . . . . . . YI-UF0 (-10/Mines) Combat | -11 -10 -10 -9 -9 -9 -8 -8 -7 -------- Run | Scr Mat Min Mat Min Exi Min Mat Fac Damage Taken 3537 | . 68 57 489 194 . 521 1761 447 Core 281 | . 16 8 69 14 . 74 94 6 Absorbed by Shields . | . . . . . . . . . Regen/Repaired (Parts) 321 | . . . . . . . 321 . Core Remaining (%) 83 | 100 . 90 . . . 60 82 . Volleys Fired 194 | 2 7 28 61 2 . 20 57 17 Largest 2 | 2 2 2 2 2 . 2 2 2 Hottest 160 | 90 90 90 113 113 . 113 160 160 Shots Fired 363 | 4 14 52 103 4 . 39 113 34 Gun 140 | 4 14 48 57 2 . 15 . . Cannon 215 | . . . 45 2 . 21 113 34 Launcher 8 | . . 4 1 . . 3 . . Special . | . . . . . . . . . Kinetic 17 | . . . 17 . . . . . Thermal 294 | 4 14 48 58 2 . 21 113 34 Explosive 8 | . . 4 1 . . 3 . . Electromagnetic 44 | . . . 27 2 . 15 . . Robot Hit Streak 17 | 3 8 8 14 1 . 6 17 9 Robot Miss Streak 4 | . 2 4 4 2 . 2 2 2 Penetration Max . | . . . . . . . . . Secondary Targets 2 | . 2 . . . . . . . Max Gunslinging Chain 1 | . 1 . . . . . . . Shots Hit Robots 256 | 3 9 31 69 2 . 26 89 27 Core Hits 149 | 3 5 22 45 4 . 16 43 11 Critical Kills 4 | . . . . . . 1 3 . Critical Parts Destroyed . | . . . . . . . . . Critical Strikes 6 | . . 2 . . . 1 3 . Burn 2 | . . 2 . . . . . . Meltdown 4 | . . . . . . 1 3 . Melee Attacks 4 | . . . . . . . 4 . Impact . | . . . . . . . . . Slashing 4 | . . . . . . . 4 . Piercing . | . . . . . . . . . Sneak Attacks . | . . . . . . . . . Combat Hostiles . | . . . . . . . . . Follow-up Attacks . | . . . . . . . . . Damage Inflicted 6959 | 47 113 915 1536 69 . 930 2614 735 Guns 1445 | 47 108 399 691 . . 200 . . Cannons 4168 | . . . 639 41 . 260 2493 735 Explosions 1064 | . . 461 135 . . 468 . . Melee 101 | . . . . . . . 101 . Ramming 181 | . 5 55 71 28 . 2 20 . Kinetic 194 | . . . 194 . . . . . Thermal 4936 | 47 108 399 753 41 . 360 2493 735 Explosive 964 | . . 461 135 . . 368 . . Electromagnetic 583 | . . . 383 . . 200 . . Impact . | . . . . . . . . . Slashing 101 | . . . . . . . 101 . Piercing . | . . . . . . . . . Highest Corruption 2 | . . . 2 2 2 2 . 2 Average Corruption 2 | . . . 2 2 2 2 . 2 Corruption Purged . | . . . . . . . . . Corruption Blocked . | . . . . . . . . . Effects 28 | . . . 10 8 3 7 . . Message Errors 8 | . . . 4 2 1 1 . . Matter Fused 8 | . . . 3 2 1 2 . . Heat Flow Errors 2 | . . . 1 1 . . . . Energy Discharges 4 | . . . 1 1 . 2 . . Parts Rejected 1 | . . . 1 . . . . . Data Loss (minor) 3 | . . . . 1 1 1 . . Data Loss (major) 1 | . . . . 1 . . . . Misfires 1 | . . . . . . 1 . . Overload Shots . | . . . . . . . . . Overflow Damage 49 | . . 5 17 . . 3 14 10 Projectiles 26 | . . . . . . 2 14 10 Explosions 23 | . . 5 17 . . 1 . . Melee . | . . . . . . . . . Knockbacks 1 | . . . . . . . 1 . Impact 1 | . . . . . . . 1 . Kinetic . | . . . . . . . . . Secondary . | . . . . . . . . . Self-Inflicted Damage 21 | . . . 3 . . 18 . . Shots 2 | . . . 1 . . 1 . . Rammed 39 | . 1 13 15 5 . 1 4 . Targets Rammed 44 | . 2 15 15 6 . 2 4 . Kicked . | . . . . . . . . . Crushed 5 | . 1 2 . 1 . 1 . . Highest Temperature 405 | 30 150 270 96 226 . 224 405 48 Average Temperature 95 | 18 64 120 24 70 . 79 145 13 Received Heat Transfer 1440 | . . . 174 . . 252 927 87 Effects 6 | . . 4 . . . . 2 . Shutdowns 1 | . . . . . . . 1 . Energy Bleed 2 | . . 1 . . . . 1 . Interference 3 | . . 3 . . . . . . Siege Activations . | . . . . . . . . . Robots Corrupted . | . . . . . . . . . Combat Hostiles . | . . . . . . . . . Parts Fried . | . . . . . . . . . Impact Corruptions . | . . . . . . . . . Robots Melted 4 | . . . . . . 1 3 . Combat Hostiles 4 | . . . . . . 1 3 . Parts Melted 28 | . 1 . 3 . . 3 15 6 Heat Transferred 9647 | 124 297 1202 1468 74 . 544 4588 1350 Parts Sabotaged . | . . . . . . . . . Parts Stolen . | . . . . . . . . . Parts Stripped . | . . . . . . . . . Power Chain Reactions 1 | . . . . . . 1 . . Missiles Intercepted . | . . . . . . . . . Alert | -11 -10 -10 -9 -9 -9 -8 -8 -7 ------- Run | Scr Mat Min Mat Min Exi Min Mat Fac Peak Influence 568 | 10 124 260 427 171 . 139 568 395 Initial 241 | . 6 48 41 166 . . 39 241 Average 159 | 3 43 121 206 100 . 52 244 267 Maximum Alert Level 2 | . . 1 2 . . . 2 1 Low Security (%) 68 | 100 100 79 57 100 . 100 48 5 Level 1 24 | . . 20 32 . . . 26 94 Level 2 6 | . . . 10 . . . 25 . Level 3 . | . . . . . . . . . Level 4 . | . . . . . . . . . Level 5 . | . . . . . . . . . High Security . | . . . . . . . . . Max Security . | . . . . . . . . . Squads Dispatched 13 | . 1 . 3 . . . 6 3 Investigation 6 | . . . 1 . . . 3 2 Extermination 1 | . . . . . . . . 1 Reinforcement 5 | . 1 . 2 . . . 2 . Assault 1 | . . . . . . . 1 . Garrison . | . . . . . . . . . Intercept . | . . . . . . . . . Searches Triggered . | . . . . . . . . . Construction Impeded 2 | . . . . . . . 2 . Haulers Reinforced . | . . . . . . . . . Active Scanning Responses . | . . . . . . . . . Cargo Convoy Interrupts . | . . . . . . . . . Stealth | -11 -10 -10 -9 -9 -9 -8 -8 -7 --------- Run | Scr Mat Min Mat Min Exi Min Mat Fac Distress Signals 8 | . 1 . 2 2 . . 1 2 Communications Jammed . | . . . . . . . . . Distress Signals . | . . . . . . . . . Times Spotted 103 | . 7 5 35 2 . 10 35 9 Peak Tracking Total 6 | . 5 3 4 2 . 4 6 6 Tactical Retreats 1 | . . . . . . . 1 . Traps | -11 -10 -10 -9 -9 -9 -8 -8 -7 ------- Run | Scr Mat Min Mat Min Exi Min Mat Fac Traps Triggered 3 | . . . 1 . . . 1 1 Indirectly . | . . . . . . . . . Trap Hack Attempts . | . . . . . . . . . Triggered . | . . . . . . . . . Disarmed . | . . . . . . . . . Reprogrammed . | . . . . . . . . . Reused . | . . . . . . . . . Traps Extracted . | . . . . . . . . . Installed 1 | . . 1 . . . . . . Triggered . | . . . . . . . . . Machines | -11 -10 -10 -9 -9 -9 -8 -8 -7 ---------- Run | Scr Mat Min Mat Min Exi Min Mat Fac Machines Disabled 4 | . . 1 2 . . . 1 . Max in Single Turn 1 | . . 1 1 . . . 1 . Garrison Access 2 | . . . . . . . 1 1 Machines Sabotaged . | . . . . . . . . . Garrisons Compromised . | . . . . . . . . . Overloaded Fab Kills . | . . . . . . . . . Hacking | -11 -10 -10 -9 -9 -9 -8 -8 -7 --------- Run | Scr Mat Min Mat Min Exi Min Mat Fac Machines Accessed 26 | . 3 1 11 . 1 1 7 2 Terminals 16 | . 3 1 8 . . 1 3 . Fabricators 1 | . . . . . . . . 1 Repair Stations 1 | . . . . . . . 1 . Recycling Units 1 | . . . 1 . . . . . Scanalyzers 4 | . . . 2 . . . 2 . Garrison Access 2 | . . . . . . . 1 1 Total Hacks 82 | . 11 2 43 . 1 2 19 4 Successful 48 | . 6 . 24 . 1 1 12 4 Failed 34 | . 5 2 19 . . 1 7 . Catastrophic 3 | . . 1 1 . . 1 . . Database Lockouts . | . . . . . . . . . Manual 27 | . 7 2 9 . . 2 6 1 Terminals 48 | . 11 2 24 . . 2 9 . Fabricators 3 | . . . . . . . . 3 Repair Stations 4 | . . . . . . . 4 . Recycling Units 4 | . . . 4 . . . . . Scanalyzers 20 | . . . 15 . . . 5 . Garrison Access 2 | . . . . . . . 1 1 Terminal Hacks 15 | . 6 . 6 . 1 1 1 . Record 1 | . . . . . 1 . . . Part Schematic 1 | . . . . . . 1 . . Robot Schematic 3 | . 3 . . . . . . . Robot Analysis 4 | . 2 . 2 . . . . . Prototype ID Bank 3 | . 1 . 2 . . . . . Branch Access Points 1 | . . . 1 . . . . . Terminal Index 1 | . . . . . . . 1 . Hauler Manifests 1 | . . . 1 . . . . . Fabricator Hacks 2 | . . . . . . . . 2 Network Status 1 | . . . . . . . . 1 Load Schematic 1 | . . . . . . . . 1 Repair Station Hacks 4 | . . . . . . . 4 . Scan Component 2 | . . . . . . . 2 . Repair 2 | . . . . . . . 2 . Recycling Unit Hacks 1 | . . . 1 . . . . . Report Inventory 1 | . . . 1 . . . . . Scanalyzer 19 | . . . 15 . . . 4 . Insert Component 9 | . . . 7 . . . 2 . Analyze 10 | . . . 8 . . . 2 . Garrison Access Hacks 2 | . . . . . . . 1 1 Seal Access 2 | . . . . . . . 1 1 Unauthorized Hacks 5 | . . . 2 . . . 2 1 Terminals 4 | . . . 2 . . . 2 . Botnet 4 | . . . 2 . . . 2 . Fabricators 1 | . . . . . . . . 1 Recompile 1 | . . . . . . . . 1 Repair Stations . | . . . . . . . . . Recycling Units . | . . . . . . . . . Scanalyzers . | . . . . . . . . . Garrison Access . | . . . . . . . . . Data Cores Recovered . | . . . . . . . . . Used . | . . . . . . . . . Hacking Detections 21 | . 3 1 10 . . 1 5 1 Full Trace Events 5 | . 1 1 1 . . . 2 . Feedback Events . | . . . . . . . . . Feedback Blocked . | . . . . . . . . . Robot Schematics Acquired 3 | . 3 . . . . . . . Robots Built . | . . . . . . . . . Authchips . | . . . . . . . . . Time . | . . . . . . . . . Total Robot Build Rating . | . . . . . . . . . Part Schematics Acquired 10 | . . . 7 . . 1 2 . Parts Built . | . . . . . . . . . Authchips . | . . . . . . . . . Time . | . . . . . . . . . Total Part Build Rating . | . . . . . . . . . Parts Repaired 2 | . . . . . . . 2 . Time 82 | . . . . . . . 82 . Parts Recycled . | . . . . . . . . . Recycled Matter . | . . . . . . . . . Retrieved Matter . | . . . . . . . . . Retrieved Components . | . . . . . . . . . Parts Scanalyzed 9 | . . . 7 . . . 2 . Part Schematics Acquired 9 | . . . 7 . . . 2 . Parts Damaged 1 | . . . 1 . . . . . Bothacking | -11 -10 -10 -9 -9 -9 -8 -8 -7 ------------ Run | Scr Mat Min Mat Min Exi Min Mat Fac Used RIF Installer . | . . . . . . . . . Robots Hacked . | . . . . . . . . . Non-combat . | . . . . . . . . . Combat . | . . . . . . . . . Robot Hacks Applied . | . . . . . . . . . Relay Couplers Released . | . . . . . . . . . Fabnet Peak Effective % . | . . . . . . . . . Robots Rewired . | . . . . . . . . . Allies Hacked . | . . . . . . . . . Hacks Repelled . | . . . . . . . . . Allies | -11 -10 -10 -9 -9 -9 -8 -8 -7 -------- Run | Scr Mat Min Mat Min Exi Min Mat Fac Total Allies 3 | . . 3 . . . . . . Largest Group 3 | . . 3 3 . . . . . Highest-Rated Group 40 | . . 40 40 . . . . . Highest-Rated Ally 16 | . . 16 16 . . . . . Total Orders . | . . . . . . . . . Ally Attacks 20 | . . . 20 . . . . . Total Damage 184 | . . . 184 . . . . . Kills 3 | . . . 3 . . . . . Allies Corrupted . | . . . . . . . . . Allies Melted . | . . . . . . . . . Intel | -11 -10 -10 -9 -9 -9 -8 -8 -7 ------- Run | Scr Mat Min Mat Min Exi Min Mat Fac Robot Analysis Total 4 | . 2 . 2 . . . . . Derelict Logs Recovered 3 | . . 2 . 1 . . . . Drone Launches . | . . . . . . . . . Drone Recoveries . | . . . . . . . . . Exploration | -11 -10 -10 -9 -9 -9 -8 -8 -7 ------------- Run | Scr Mat Min Mat Min Exi Min Mat Fac Turns Passed 5770 | 86 307 999 1435 682 249 634 940 438 Spaces Moved 2953 | 43 169 545 719 410 156 348 353 210 Core 3 | 3 . . . . . . . . Treads 2950 | 40 169 545 719 410 156 348 353 210 Legs . | . . . . . . . . . Wheels . | . . . . . . . . . Hover . | . . . . . . . . . Flight . | . . . . . . . . . Fastest Speed 50 | 50 160 160 160 160 160 160 160 165 Average Speed 161 | 152 160 160 160 160 160 160 167 167 Slowest Speed 250 | 160 160 160 160 160 160 160 250 170 Overloaded Moves . | . . . . . . . . . Propulsion Burnouts . | . . . . . . . . . Robots Hopped . | . . . . . . . . . Cave-ins Triggered . | . . . . . . . . . Exploration Rate (%) 53 | 4 45 97 69 91 55 84 32 7 Regions Visited 8 Branch Regions 4 Pre-discovered Areas 2 | . . 1 . . 1 . . . Known Exits Taken 1 | . . . 1 . . . . . Unknown Exits Taken 7 | 1 1 1 . 1 1 1 1 . Scrap Searched 4 | . . 1 . 2 . 1 . . Spaces Dug 31 | . . 26 5 . . . . . Terrain Destroyed 72 | . . 26 5 . . 25 16 . Melee . | . . . . . . . . . Projectile 16 | . . . . . . . 16 . AOE 56 | . . 26 5 . . 25 . . Terrain Rammed . | . . . . . . . . . Walls Destroyed . | . . . . . . . . . Machines Disabled . | . . . . . . . . . Actions | -11 -10 -10 -9 -9 -9 -8 -8 -7 --------- Run | Scr Mat Min Mat Min Exi Min Mat Fac Total 3567 | 56 190 605 899 429 156 386 583 263 Wait 192 | 2 3 1 39 7 . 3 117 20 Move 2945 | 42 168 544 718 409 155 347 352 210 Hop . | . . . . . . . . . Pick Up 42 | 2 6 2 16 1 . 2 9 4 Fast Attach 22 | 7 . . 7 . . 1 5 2 Attach 12 | . . . 2 1 1 1 5 2 Detach 2 | . . . . 1 . . 1 . Swap 54 | 1 3 13 14 1 . 7 12 3 Drop 55 | . 1 1 27 1 . 3 17 5 Fire 194 | 2 7 28 61 2 . 20 57 17 Melee 4 | . . . . . . . 4 . Ram . | . . . . . . . . . Kick . | . . . . . . . . . Crush 44 | . 2 15 15 6 . 2 4 . Escape Stasis . | . . . . . . . . . Rewire . | . . . . . . . . . Trap 1 | . . 1 . . . . . . Miscellaneous . | . . . . . . . . . Route ------- -11/Scrapyard -10/Materials (discovered 2 exits: *Mat / *Min) -10/Mines (discovered 2 exits: *Mat x2) -9/Materials (discovered 3 exits: *Mat / *Min x2) -9/Mines (discovered 3 exits: *Mat / *Exi / [*Zio]) -9/Exiles -8/Mines (discovered 2 exits: *Mat x2) -8/Materials -7/Factory (discovered 1 exit: Sto) History --------- Turn | Location | Event 22 | -11/Scrapyard | Discovered new exit (range 16) 87 | -11/Scrapyard | Entered Materials 250 | -10/Materials | Discovered new exit (range 4) 310 | -10/Materials | Build established: Mutant 382 | -10/Materials | Discovered new exit (range 7) 394 | -10/Materials | Entered Mines 423 | -10/Mines | Learned location of Storage (-7) 548 | -10/Mines | Assisted by bots powering up and referring to "LRC-V3" 624 | -10/Mines | Destroyed YI-UF0 636 | -10/Mines | Found Prototype Storage 653 | -10/Mines | Discovered new exit (range 14) 741 | -10/Mines | Discovered new exit (range 9) 903 | -10/Mines | Learned Materials terminal intel 904 | -10/Mines | Identified YI-UF0's Bottomless Matter Pit 1270 | -10/Mines | Found a hidden stash of uninstalled traps 1393 | -10/Mines | Entered Materials 1393 | -9/Materials | Accompanied by 3 allies 1393 | -9/Materials | Evolved 2 slots: Propulsion x1, Utility x1 1394 | -9/Materials | Loaded intel: 12 terminal locations 1688 | -9/Materials | Build established: Scavenger-Mutant 2003 | -9/Materials | Discovered new exit (range 8) 2190 | -9/Materials | Discovered new exit (range 3) 2571 | -9/Materials | Identified exit to Mines 2828 | -9/Materials | Entered Mines 2852 | -9/Mines | Assembled infested the area 3004 | -9/Mines | A Derelict revealed a hidden shortcut to a safe place 3191 | -9/Mines | Found a damaged Exp. Sensor Array with a note attached 3194 | -9/Mines | Found Prototype Device 3233 | -9/Mines | Received a Rocket Launcher from a helpful Derelict 3280 | -9/Mines | Discovered new exit (range 5) 3502 | -9/Mines | Deemed a non-threat by the Exiles lab entrance 3502 | -9/Mines | Discovered new exit (range 5) 3510 | -9/Mines | Entered Exiles 3549 | -9/Exiles | Met 8R-AWN 3576 | -9/Exiles | Met EX-HEX 3646 | -9/Exiles | Met EX-DEC 3683 | -9/Exiles | Learned location of Zion (-7) 3739 | -9/Exiles | Discovered new exit (range 14) 3759 | -9/Exiles | Entered Mines 3951 | -8/Mines | Discovered new exit (range 10) 4337 | -8/Mines | Discovered new exit (range 2) 4393 | -8/Mines | Entered Materials 4393 | -8/Materials | Evolved 2 slots: Utility x2 4881 | -8/Materials | Identified Exp. Sensor Array 4885 | -8/Materials | Build established: Mutant 5146 | -8/Materials | Destroyed 7 combat bots 5183 | -8/Materials | Repaired Arm. Treads 5193 | -8/Materials | First assault squad dispatched 5228 | -8/Materials | Repaired Plasma Cannon 5323 | -8/Materials | Discovered new exit (range 5) 5333 | -8/Materials | Entered Factory 5333 | -7/Factory | Evolved 2 slots: Propulsion x1, Utility x1 5334 | -7/Factory | Identified exit to Storage 5771 | -7/Factory | Self-destructed Last Messages --------------- >>Force(Recompile) RECOMPILED[Authchip [Weapon]] 05720_ ALERT: Suspicious activity at Fabricator F001. Dispatching Investigation squad. 05720_ Acquired Authchip [Weapon]. 05727_ C-30 ARC bursts open, deploying its payload. 05727_ P-60 Hacker unfolds itself. 05730_ Remote Datajack melted. 05730_ Gravmag System melted. 05730_ P-60 Hacker destroyed. 05733_ K-01 Serf collects debris. 05738_ U-05 Engineer lays Concrete. 05738_ W-25 Informer sends out distress signal. 05742_ K-01 Serf collects debris. 05757_ Exp. Sensor Array destroyed. 05759_ Aluminum Leg melted. 05759_ G-47 Trooper destroyed. 05769_ Plasma Cannon severed. 05770_ W-25 Informer sends out distress signal. 05771_ L-41 Fighter heat damages Carbon-fiber Leg. Map ----- +----------------------------------------------------+ | ?????????????????????????????????????????????????? | | ?????????????????????????????????????????????????? | | ?????????????????????????????????????????????????? | | ?????????????????????????????????????????????????? | | ?????????????????????????????????????????????????? | | ?????????????????????????????????????????????????? | | ?????????????????????????????????????????????????? | | ?????????????????????????????????????????????????? | | ?????????????????????????????????????????????????? | | ?????????????????????????????????????????????????? | | ?????????????????????????????????????????????????? | | ?????????????????????????????????????????????????? | | ?????????????????????????????????????????????????? | | ?????????????????????????????????????????????????? | | ???????????????????? ????????????????????????????? | | ???????????????????? ????????????????????????????? | | ???????????????????? ????????????????????????????? | | ???????????????????? ????????????????????????????? | | ???????????????????? ????????????????????????????? | | ???????????????????? ????????????????????????????? | | ?"?????????????????? ????????????????????????????? | | "?????????????????# #???????????????????????????? | | "?????????????????# ##########??????????????????? | | ""????????????????# # #??????????????????? | | ""????????????????# # #??????????????????? | | "?????????????????# # @ #??????????????????? | | "?????????????????# g l #??????????????????? | | ??????????????????#w# #??????????????????? | | ??????????????????# # #??????????????????? | | ???????????????????#%+* #??????????????????? | | ???????????????????#!# = #??????????????????? | | ???????#############%# #??????????????????? | | ######## #%##########??????????????????? | | ! #####T ##??????????????????? | | +???????????????? | | #????????????????????? | | """ #????????????????????? | | """ """ """ #????????????????????? | | """ """ " #????????????????????? | | """ """ "F" #???????????????????? | | """ """ """ ##### #???????????????????? | | #???? #???????????????????? | | ####### ] = #?????#???????????????????? | | ??????# ######## #?????????????????????????? | | ???#### #??????# #?????????????????????????? | | ???+ #??????# ^ #?????????????????????????? | | ???#### #??????# ##### #?????????????????????????? | | ??????# #??????# #???? #?????????????????????????? | | ??????# #??????# #?????#?????????????????????????? | | ??????# #?######+###?????????????????????????????? | +----------------------------------------------------+ Best States ------------- Heat Dissipation 64 Energy Generation 18 Energy Capacity 310 Matter Stores 300 Matter Capacity 300 Sight Range 16 Robot Scan Range 20 Terrain Scan Density 10 Armor Coverage 225 Resistance: KI 20 Evasion (%) 40 Targeting Accuracy 14 Recoil Reduction 4 Offensive Hacking 10 Authchip Count 1 Item Schematics ----------------- Imp. EM Shotgun | -9/Materials | Scanalyzed Hacking Suite | -9/Materials | Scanalyzed Lgt. Armor Plating | -9/Materials | Scanalyzed Maul | -9/Materials | Scanalyzed Seismic Detector | -9/Materials | Scanalyzed Imp. Targeting Computer | -9/Materials | Scanalyzed Mni. Grenade Launcher | -9/Materials | Scanalyzed Hvy. Assault Cannon | -8/Mines | Hacked Exp. Sensor Array | -8/Materials | Scanalyzed Hvy. Armor Plating | -8/Materials | Scanalyzed Robot Schematics ------------------ S-10 Pest | -10/Materials | Hacked O-16 Technician | -10/Materials | Hacked M-13 Machinist | -10/Materials | Hacked Fabricated ------------ Nothing Alien Tech Used ----------------- None Achievements -------------- Collateral Damage Challenges ------------ None Game ------ Seed CryofiberArmoredExtractor Manual? 0 Play Time 01:04:24 Cumulative 78.4 hours Start 2022.09.18 @ 18:46:54 End 2022.09.19 @ 20:42:02 Sessions 7 Manual Loads 0 Difficulty Rogue Special Mode None Game No. 140 Rogue 140 Adventurer 0 Explorer 0 Win Type - Total 1 Types 0/0/0/1/0/0/0/0/0 Lore% 56 Gallery% 64 Achievement% 49 Wizard Run 0 Options --------- ASCII 0 Keyboard 0 Movement Numpad Keybinds 0 Fullscreen 1 Font 14/SmallcapsGlow Map View 84x54 Tactical HUD 1 Map Filters NONE Filters NONE Steam 1 RUN: 0c7de3ac-4183-477f-bc7e-cc006445ce88